[Event "Early-Titled-Tuesday-Blitz-April-02-2024"]
[Site "Chess.com"]
[Date "2024.04.02"]
[Round "1"]
[White "Brahianzevich"]
[Black "GOGIEFF"]
[Result "0-1"]
[WhiteElo "2537"]
[BlackElo "3008"]
[TimeControl "180+1"]
[EndTime "8:05:55 PDT"]
[Termination "GOGIEFF won by resignation"]

1. e4 {[%clk 0:02:58.2]} 1... c5 {[%clk 0:02:59.3]} 2. Nf3 {[%clk 0:02:58.1]}
2... Nc6 {[%clk 0:02:59.5]} 3. d4 {[%clk 0:02:58.8]} 3... cxd4 {[%clk
0:02:59.8]} 4. Nxd4 {[%clk 0:02:59.7]} 4... Qb6 {[%clk 0:03:00]} 5. Nb3 {[%clk
0:02:58]} 5... e6 {[%clk 0:03:00.4]} 6. Nc3 {[%clk 0:02:57.9]} 6... Nf6 {[%clk
0:03:00]} 7. Be3 {[%clk 0:02:57.5]} 7... Qc7 {[%clk 0:02:59.5]} 8. Bd3 {[%clk
0:02:56.6]} 8... a6 {[%clk 0:02:59.5]} 9. a4 {[%clk 0:02:50.6]} 9... b6 {[%clk
0:02:56.1]} 10. O-O {[%clk 0:02:50.5]} 10... d6 {[%clk 0:02:55.9]} 11. f4 {[%clk
0:02:49.1]} 11... Be7 {[%clk 0:02:56.2]} 12. Qe1 {[%clk 0:02:42.9]} 12... Bb7
{[%clk 0:02:54]} 13. h3 {[%clk 0:02:31.3]} 13... O-O {[%clk 0:02:50.4]} 14. Qg3
{[%clk 0:02:26.3]} 14... Nb4 {[%clk 0:02:42.1]} 15. Rad1 {[%clk 0:02:22.3]}
15... d5 {[%clk 0:02:42.1]} 16. e5 {[%clk 0:02:21.5]} 16... Ne4 {[%clk 0:02:42]}
17. Bxe4 {[%clk 0:02:17.8]} 17... dxe4 {[%clk 0:02:41.9]} 18. Qf2 {[%clk
0:02:18.5]} 18... b5 {[%clk 0:02:25.5]} 19. axb5 {[%clk 0:02:02.8]} 19... axb5
{[%clk 0:02:26.4]} 20. Nxb5 {[%clk 0:02:03.6]} 20... Qxc2 {[%clk 0:02:23.2]} 21.
Nc5 {[%clk 0:01:51.5]} 21... Bc6 {[%clk 0:02:06.6]} 22. Nd6 {[%clk 0:01:42]}
22... Qxf2+ {[%clk 0:02:04.6]} 23. Rxf2 {[%clk 0:01:41.9]} 23... Nd5 {[%clk
0:02:01.7]} 24. Bc1 {[%clk 0:01:06.9]} 24... e3 {[%clk 0:01:56.1]} 25. Re2
{[%clk 0:01:04.1]} 25... Nxf4 {[%clk 0:01:54.7]} 26. Rxe3 {[%clk 0:01:05]} 26...
Nxg2 {[%clk 0:01:52.7]} 27. Rg3 {[%clk 0:01:04.1]} 27... Nh4 {[%clk 0:01:53]}
28. Nce4 {[%clk 0:00:53.7]} 28... Ng6 {[%clk 0:01:37.5]} 29. Bg5 {[%clk
0:00:43.3]} 29... Bxg5 {[%clk 0:01:37]} 30. Rxg5 {[%clk 0:00:39.1]} 30... Rfb8
{[%clk 0:01:35.6]} 31. Rd2 {[%clk 0:00:36.9]} 31... Ra1+ {[%clk 0:01:34.1]} 32.
Kf2 {[%clk 0:00:36.9]} 32... h6 {[%clk 0:01:26.8]} 33. Rh5 {[%clk 0:00:35.2]}
33... Rb4 {[%clk 0:01:18.1]} 34. Kf3 {[%clk 0:00:29]} 34... Re1 {[%clk
0:01:15.5]} 0-1

[Event "Early-Titled-Tuesday-Blitz-April-02-2024"]
[Site "Chess.com"]
[Date "2024.04.02"]
[Round "1"]
[White "Shuvalov"]
[Black "javirec"]
[Result "1-0"]
[WhiteElo "2610"]
[BlackElo "2264"]
[TimeControl "180+1"]
[EndTime "8:05:56 PDT"]
[Termination "Shuvalov won by resignation"]

1. d4 {[%clk 0:03:00.9]} 1... Nf6 {[%clk 0:02:55.5]} 2. c4 {[%clk 0:03:00.5]}
2... d6 {[%clk 0:02:55]} 3. Nf3 {[%clk 0:03:00.3]} 3... g6 {[%clk 0:02:53.3]} 4.
Nc3 {[%clk 0:03:00.6]} 4... Bf5 {[%clk 0:02:52.3]} 5. Qb3 {[%clk 0:02:57.1]}
5... Qc8 {[%clk 0:02:45.9]} 6. h3 {[%clk 0:02:54.6]} 6... c5 {[%clk 0:02:43.8]}
7. g4 {[%clk 0:02:51.2]} 7... Bd7 {[%clk 0:02:41.4]} 8. Bg2 {[%clk 0:02:50.6]}
8... Nc6 {[%clk 0:02:40.3]} 9. d5 {[%clk 0:02:47.9]} 9... Na5 {[%clk 0:02:40.3]}
10. Qc2 {[%clk 0:02:39.6]} 10... Nxc4 {[%clk 0:02:39.2]} 11. O-O {[%clk
0:02:14.6]} 11... Bg7 {[%clk 0:02:35.7]} 12. Bf4 {[%clk 0:02:14.6]} 12... O-O
{[%clk 0:02:27.7]} 13. Rad1 {[%clk 0:02:12.8]} 13... b5 {[%clk 0:02:12.5]} 14.
a4 {[%clk 0:02:06.8]} 14... a6 {[%clk 0:02:10.6]} 15. e4 {[%clk 0:02:01]} 15...
Rb8 {[%clk 0:01:51.5]} 16. axb5 {[%clk 0:01:56.6]} 16... axb5 {[%clk 0:01:51.1]}
17. Rfe1 {[%clk 0:01:54.6]} 17... Ne8 {[%clk 0:01:43.2]} 18. e5 {[%clk
0:01:50.2]} 18... dxe5 {[%clk 0:01:42.2]} 19. Nxe5 {[%clk 0:01:49.5]} 19... Nxe5
{[%clk 0:01:41.3]} 20. Bxe5 {[%clk 0:01:50.4]} 20... Bxe5 {[%clk 0:01:26.2]} 21.
Rxe5 {[%clk 0:01:51.3]} 21... Nd6 {[%clk 0:01:21.2]} 22. Rxe7 {[%clk 0:01:47.5]}
22... Qd8 {[%clk 0:01:20.1]} 23. Rde1 {[%clk 0:01:43.7]} 23... b4 {[%clk
0:01:19.9]} 24. Nb1 {[%clk 0:01:39]} 24... Rc8 {[%clk 0:01:12.5]} 25. b3 {[%clk
0:01:37.1]} 25... Nb5 {[%clk 0:01:11.9]} 26. Nd2 {[%clk 0:01:29.5]} 26... Nd4
{[%clk 0:01:11.2]} 27. Qd1 {[%clk 0:01:28.7]} 27... Bb5 {[%clk 0:00:56.7]} 28.
R7e3 {[%clk 0:01:21]} 28... Qa5 {[%clk 0:00:30.5]} 29. Ne4 {[%clk 0:01:16.8]}
29... c4 {[%clk 0:00:29.7]} 30. Qxd4 {[%clk 0:01:10.9]} 1-0

[Event "Early-Titled-Tuesday-Blitz-April-02-2024"]
[Site "Chess.com"]
[Date "2024.04.02"]
[Round "1"]
[White "Mikasinski"]
[Black "LuisFSiles"]
[Result "1-0"]
[WhiteElo "2646"]
[BlackElo "2342"]
[TimeControl "180+1"]
[EndTime "8:05:58 PDT"]
[Termination "Mikasinski won on time"]

1. e4 {[%clk 0:03:00.9]} 1... c5 {[%clk 0:02:59.6]} 2. Nf3 {[%clk 0:03:01]} 2...
Nc6 {[%clk 0:03:00]} 3. d4 {[%clk 0:03:01.1]} 3... cxd4 {[%clk 0:03:00.3]} 4.
Nxd4 {[%clk 0:03:01.9]} 4... Nf6 {[%clk 0:03:00.7]} 5. Nc3 {[%clk 0:03:01.9]}
5... e5 {[%clk 0:03:01.2]} 6. Ndb5 {[%clk 0:03:02.4]} 6... d6 {[%clk 0:03:01.7]}
7. Bg5 {[%clk 0:03:03]} 7... a6 {[%clk 0:03:02]} 8. Bxf6 {[%clk 0:03:03.5]} 8...
gxf6 {[%clk 0:03:01]} 9. Na3 {[%clk 0:03:04.2]} 9... b5 {[%clk 0:03:00.3]} 10.
Nd5 {[%clk 0:03:04.1]} 10... f5 {[%clk 0:03:00.7]} 11. c3 {[%clk 0:03:03.3]}
11... Bg7 {[%clk 0:03:00.1]} 12. exf5 {[%clk 0:03:03.6]} 12... Bxf5 {[%clk
0:03:01]} 13. Nc2 {[%clk 0:03:03.8]} 13... Be6 {[%clk 0:02:59.8]} 14. Nce3
{[%clk 0:03:02.7]} 14... Ne7 {[%clk 0:02:59.3]} 15. a4 {[%clk 0:03:01.9]} 15...
Nxd5 {[%clk 0:02:55.3]} 16. Nxd5 {[%clk 0:03:00.9]} 16... O-O {[%clk 0:02:40.3]}
17. Be2 {[%clk 0:02:59.6]} 17... Kh8 {[%clk 0:02:33.3]} 18. O-O {[%clk 0:02:57]}
18... Rb8 {[%clk 0:02:28.8]} 19. axb5 {[%clk 0:02:56.5]} 19... axb5 {[%clk
0:02:28.3]} 20. Ra6 {[%clk 0:02:53.3]} 20... f5 {[%clk 0:02:20]} 21. Qd2 {[%clk
0:02:45]} 21... Bc8 {[%clk 0:01:46.6]} 22. Ra7 {[%clk 0:02:42.6]} 22... Bb7
{[%clk 0:01:38.3]} 23. Rd1 {[%clk 0:02:41.5]} 23... Bxd5 {[%clk 0:01:31.1]} 24.
Qxd5 {[%clk 0:02:40.9]} 24... Qb6 {[%clk 0:01:29.6]} 25. Rd7 {[%clk 0:02:37.2]}
25... Rfd8 {[%clk 0:01:01.3]} 26. Rxd6 {[%clk 0:02:31.5]} 26... Rxd6 {[%clk
0:01:00.2]} 27. Qxd6 {[%clk 0:02:32.3]} 27... Qxd6 {[%clk 0:00:52.4]} 28. Rxd6
{[%clk 0:02:32]} 28... b4 {[%clk 0:00:52.6]} 29. cxb4 {[%clk 0:02:30.9]} 29...
e4 {[%clk 0:00:39.7]} 30. b3 {[%clk 0:02:28.5]} 30... Rc8 {[%clk 0:00:34.9]} 31.
Bc4 {[%clk 0:02:27.4]} 31... Bf8 {[%clk 0:00:31.1]} 32. Rf6 {[%clk 0:02:25.6]}
32... Bxb4 {[%clk 0:00:29.8]} 33. Rxf5 {[%clk 0:02:24.9]} 33... Rd8 {[%clk
0:00:27]} 34. g3 {[%clk 0:02:24]} 34... Rd1+ {[%clk 0:00:21]} 35. Kg2 {[%clk
0:02:23.7]} 35... Rd2 {[%clk 0:00:21.9]} 36. Rg5 {[%clk 0:02:21.8]} 36... h6
{[%clk 0:00:20.9]} 37. Rf5 {[%clk 0:02:20.6]} 37... e3 {[%clk 0:00:19.9]} 38.
Kf1 {[%clk 0:02:18.1]} 38... exf2 {[%clk 0:00:12.8]} 39. Rxf2 {[%clk 0:02:17.4]}
39... Rxf2+ {[%clk 0:00:12.6]} 40. Kxf2 {[%clk 0:02:18.3]} 40... Kg7 {[%clk
0:00:12.9]} 41. Kf3 {[%clk 0:02:19]} 41... Kf6 {[%clk 0:00:13.1]} 42. Ke4 {[%clk
0:02:19.5]} 42... Ke7 {[%clk 0:00:11.6]} 43. Kd5 {[%clk 0:02:19.7]} 43... Kd7
{[%clk 0:00:11.8]} 44. Bb5+ {[%clk 0:02:20.2]} 44... Kc7 {[%clk 0:00:11.6]} 45.
g4 {[%clk 0:02:19.5]} 45... Be1 {[%clk 0:00:09.2]} 46. h3 {[%clk 0:02:19.9]}
46... Bh4 {[%clk 0:00:09]} 47. Bd3 {[%clk 0:02:20.3]} 47... Kb6 {[%clk
0:00:08.5]} 48. b4 {[%clk 0:02:20.2]} 48... Be1 {[%clk 0:00:07.6]} 49. b5 {[%clk
0:02:20.7]} 49... Bh4 {[%clk 0:00:07.8]} 50. Ke6 {[%clk 0:02:21.2]} 50... Bf2
{[%clk 0:00:05.3]} 51. Kf5 {[%clk 0:02:21.6]} 51... Be3 {[%clk 0:00:02.8]} 52.
Kg6 {[%clk 0:02:22.1]} 52... Kc7 {[%clk 0:00:03]} 53. h4 {[%clk 0:02:22.1]}
53... Kd6 {[%clk 0:00:02.6]} 54. g5 {[%clk 0:02:22.5]} 54... hxg5 {[%clk
0:00:03]} 55. hxg5 {[%clk 0:02:22.7]} 55... Ke7 {[%clk 0:00:02.8]} 56. Bc4
{[%clk 0:02:20.4]} 56... Kf8 {[%clk 0:00:02.4]} 57. Kf6 {[%clk 0:02:20.7]} 1-0

[Event "Early-Titled-Tuesday-Blitz-April-02-2024"]
[Site "Chess.com"]
[Date "2024.04.02"]
[Round "1"]
[White "Msb2"]
[Black "tomesao"]
[Result "1-0"]
[WhiteElo "3041"]
[BlackElo "2545"]
[TimeControl "180+1"]
[EndTime "8:05:59 PDT"]
[Termination "Msb2 won by checkmate"]

1. d4 {[%clk 0:03:00.9]} 1... d5 {[%clk 0:02:58.4]} 2. c4 {[%clk 0:03:01.3]}
2... c6 {[%clk 0:02:58.6]} 3. Nf3 {[%clk 0:03:01.6]} 3... Nf6 {[%clk 0:02:58.9]}
4. Nc3 {[%clk 0:03:02.5]} 4... dxc4 {[%clk 0:02:57.8]} 5. e4 {[%clk 0:03:02.5]}
5... b5 {[%clk 0:02:57.1]} 6. Qc2 {[%clk 0:03:03.1]} 6... Bb7 {[%clk 0:02:55]}
7. Be2 {[%clk 0:03:03.4]} 7... e6 {[%clk 0:02:54.8]} 8. O-O {[%clk 0:03:04.1]}
8... Be7 {[%clk 0:02:54.8]} 9. Rb1 {[%clk 0:03:04.3]} 9... a5 {[%clk 0:02:52.6]}
10. b3 {[%clk 0:03:02.3]} 10... cxb3 {[%clk 0:02:52.3]} 11. Rxb3 {[%clk
0:03:03.2]} 11... b4 {[%clk 0:02:49.8]} 12. e5 {[%clk 0:02:58.1]} 12... Nd5
{[%clk 0:02:45.2]} 13. Nxd5 {[%clk 0:02:58.1]} 13... cxd5 {[%clk 0:02:39.3]} 14.
Qd2 {[%clk 0:02:52.2]} 14... Ba6 {[%clk 0:02:35]} 15. Bxa6 {[%clk 0:02:48.6]}
15... Rxa6 {[%clk 0:02:34.8]} 16. Qf4 {[%clk 0:02:49.5]} 16... h6 {[%clk
0:02:29.4]} 17. Qg4 {[%clk 0:02:44.9]} 17... g6 {[%clk 0:02:27.4]} 18. h4 {[%clk
0:02:39.2]} 18... h5 {[%clk 0:02:26.1]} 19. Qg3 {[%clk 0:02:39.3]} 19... Rc6
{[%clk 0:02:26]} 20. Bg5 {[%clk 0:02:39.3]} 20... Nd7 {[%clk 0:02:23.6]} 21. Qf4
{[%clk 0:02:26]} 21... Nb6 {[%clk 0:02:18.2]} 22. Bf6 {[%clk 0:02:20.2]} 22...
Bxf6 {[%clk 0:02:07.1]} 23. exf6 {[%clk 0:02:21.1]} 23... Qc7 {[%clk 0:02:04.4]}
24. Ne5 {[%clk 0:02:19.7]} 24... Nc4 {[%clk 0:01:55.4]} 25. Rg3 {[%clk
0:01:56.5]} 25... Nxe5 {[%clk 0:01:48.7]} 26. dxe5 {[%clk 0:01:57.4]} 26... Rc4
{[%clk 0:01:47.2]} 27. Qe3 {[%clk 0:01:46.2]} 27... Rc3 {[%clk 0:01:36.1]} 28.
Qe2 {[%clk 0:01:31.1]} 28... Qc5 {[%clk 0:01:19.6]} 29. Kh2 {[%clk 0:01:17]}
29... Kd7 {[%clk 0:00:56.4]} 30. Qa6 {[%clk 0:00:58.4]} 30... Rc8 {[%clk
0:00:53.9]} 31. Qb7+ {[%clk 0:00:54.6]} 31... Rc7 {[%clk 0:00:52.8]} 32. Qb8
{[%clk 0:00:55.3]} 32... Rc8 {[%clk 0:00:52.1]} 33. Qb7+ {[%clk 0:00:55.7]}
33... Rc7 {[%clk 0:00:52.4]} 34. Qa8 {[%clk 0:00:56.2]} 34... Rc8 {[%clk
0:00:50.9]} 35. Qa6 {[%clk 0:00:48.4]} 35... Qc4 {[%clk 0:00:48.4]} 36. Qd6+
{[%clk 0:00:43.8]} 36... Ke8 {[%clk 0:00:48.5]} 37. Qe7# {[%clk 0:00:44.7]} 1-0

[Event "Early-Titled-Tuesday-Blitz-April-02-2024"]
[Site "Chess.com"]
[Date "2024.04.02"]
[Round "1"]
[White "Beca95"]
[Black "MaestroCheck"]
[Result "1-0"]
[WhiteElo "2947"]
[BlackElo "2530"]
[TimeControl "180+1"]
[EndTime "8:05:59 PDT"]
[Termination "Beca95 won by checkmate"]

1. d4 {[%clk 0:02:57.6]} 1... d5 {[%clk 0:02:56]} 2. c4 {[%clk 0:02:57.5]} 2...
c6 {[%clk 0:02:53.5]} 3. Nc3 {[%clk 0:02:57.8]} 3... Nf6 {[%clk 0:02:53.2]} 4.
Nf3 {[%clk 0:02:57.2]} 4... e6 {[%clk 0:02:52.7]} 5. Bg5 {[%clk 0:02:57]} 5...
Be7 {[%clk 0:02:51.6]} 6. e3 {[%clk 0:02:57]} 6... O-O {[%clk 0:02:49.7]} 7. Qc2
{[%clk 0:02:57.1]} 7... h6 {[%clk 0:02:44.6]} 8. h4 {[%clk 0:02:57.6]} 8... Nbd7
{[%clk 0:02:41]} 9. O-O-O {[%clk 0:02:56.8]} 9... b5 {[%clk 0:02:22.3]} 10. c5
{[%clk 0:02:55.5]} 10... a5 {[%clk 0:02:20.1]} 11. Bd3 {[%clk 0:02:53.9]} 11...
a4 {[%clk 0:02:17.6]} 12. Ne2 {[%clk 0:02:53]} 12... b4 {[%clk 0:02:10.9]} 13.
Bxf6 {[%clk 0:02:52.9]} 13... Nxf6 {[%clk 0:02:09.6]} 14. Ne5 {[%clk 0:02:53.1]}
14... Nd7 {[%clk 0:02:03]} 15. Nxc6 {[%clk 0:02:52.5]} 15... Qe8 {[%clk
0:02:02.1]} 16. Nxb4 {[%clk 0:02:50.2]} 16... Nf6 {[%clk 0:01:57.1]} 17. a3
{[%clk 0:02:47.3]} 17... Bd7 {[%clk 0:01:55.3]} 18. f4 {[%clk 0:02:47.1]} 18...
Bb5 {[%clk 0:01:55.4]} 19. Bxb5 {[%clk 0:02:46.2]} 19... Qxb5 {[%clk 0:01:56.3]}
20. Nc3 {[%clk 0:02:46.6]} 20... Qd7 {[%clk 0:01:43.3]} 21. Qe2 {[%clk
0:02:45.8]} 21... h5 {[%clk 0:01:41.5]} 22. e4 {[%clk 0:02:39]} 22... dxe4
{[%clk 0:01:34]} 23. Nxe4 {[%clk 0:02:38.8]} 23... Ng4 {[%clk 0:01:32.6]} 24. d5
{[%clk 0:02:37.4]} 24... exd5 {[%clk 0:01:17.9]} 25. Rxd5 {[%clk 0:02:38.3]}
25... Qe6 {[%clk 0:01:16.8]} 26. f5 {[%clk 0:02:28.5]} 26... Qh6+ {[%clk
0:01:15.1]} 27. Kb1 {[%clk 0:02:28.8]} 27... Ne3 {[%clk 0:01:13]} 28. Re5 {[%clk
0:02:28.7]} 28... Rfe8 {[%clk 0:01:07.7]} 29. f6 {[%clk 0:02:20.3]} 29... Bxf6
{[%clk 0:01:00.7]} 30. Nxf6+ {[%clk 0:02:19.4]} 30... gxf6 {[%clk 0:01:01.6]}
31. Rxe8+ {[%clk 0:02:14.8]} 31... Rxe8 {[%clk 0:01:02.5]} 32. Re1 {[%clk
0:02:12.1]} 32... Qg6+ {[%clk 0:00:58.2]} 33. Qd3 {[%clk 0:02:12.1]} 33... Qg3
{[%clk 0:00:55.5]} 34. Re2 {[%clk 0:02:11.1]} 34... Qf4 {[%clk 0:00:51.6]} 35.
Nd5 {[%clk 0:02:07.8]} 35... Qf1+ {[%clk 0:00:21.5]} 36. Ka2 {[%clk 0:02:07.6]}
36... Kg7 {[%clk 0:00:11.4]} 37. Rxe3 {[%clk 0:02:05.8]} 37... Qxd3 {[%clk
0:00:10.3]} 38. Rxd3 {[%clk 0:02:05.9]} 38... Re5 {[%clk 0:00:10.1]} 39. c6
{[%clk 0:02:06]} 39... Re6 {[%clk 0:00:10.6]} 40. Rc3 {[%clk 0:02:05.5]} 40...
Rxc6 {[%clk 0:00:11.5]} 41. Rxc6 {[%clk 0:02:05.2]} 41... f5 {[%clk 0:00:11.2]}
42. Nf4 {[%clk 0:02:05.3]} 42... Kh7 {[%clk 0:00:11]} 43. Nxh5 {[%clk
0:02:05.4]} 43... Kg8 {[%clk 0:00:11]} 44. Nf4 {[%clk 0:02:06.3]} 44... Kg7
{[%clk 0:00:11]} 45. b3 {[%clk 0:02:06.8]} 45... Kh7 {[%clk 0:00:11.4]} 46. bxa4
{[%clk 0:02:07.2]} 46... Kg7 {[%clk 0:00:12.3]} 47. a5 {[%clk 0:02:07.5]} 47...
Kh7 {[%clk 0:00:13.2]} 48. a6 {[%clk 0:02:08.1]} 48... Kg7 {[%clk 0:00:14.1]}
49. a7 {[%clk 0:02:08.3]} 49... Kh7 {[%clk 0:00:15]} 50. a8=Q {[%clk 0:02:07.8]}
50... Kg7 {[%clk 0:00:15.9]} 51. Qc8 {[%clk 0:02:07.7]} 51... Kh7 {[%clk
0:00:16]} 52. Qxf5+ {[%clk 0:02:07.5]} 52... Kg7 {[%clk 0:00:15.5]} 53. Qg5+
{[%clk 0:02:07.4]} 53... Kh7 {[%clk 0:00:14.9]} 54. Qh6+ {[%clk 0:02:07.6]}
54... Kg8 {[%clk 0:00:14.8]} 55. Rc8# {[%clk 0:02:08.3]} 1-0

[Event "Early-Titled-Tuesday-Blitz-April-02-2024"]
[Site "Chess.com"]
[Date "2024.04.02"]
[Round "1"]
[White "A-Fier"]
[Black "DvaHrasta"]
[Result "1-0"]
[WhiteElo "2905"]
[BlackElo "2514"]
[TimeControl "180+1"]
[EndTime "8:06:00 PDT"]
[Termination "A-Fier won on time"]

1. d4 {[%clk 0:03:00.9]} 1... Nf6 {[%clk 0:02:59.5]} 2. Bg5 {[%clk 0:03:01.4]}
2... c5 {[%clk 0:02:56.8]} 3. Bxf6 {[%clk 0:03:00.3]} 3... gxf6 {[%clk
0:02:56.3]} 4. d5 {[%clk 0:03:00.8]} 4... Qb6 {[%clk 0:02:56.2]} 5. Qc1 {[%clk
0:03:01]} 5... Bh6 {[%clk 0:02:55.5]} 6. e3 {[%clk 0:03:01]} 6... f5 {[%clk
0:02:55.8]} 7. Nc3 {[%clk 0:02:38.1]} 7... e5 {[%clk 0:02:51]} 8. g3 {[%clk
0:02:29.4]} 8... f4 {[%clk 0:02:49.9]} 9. exf4 {[%clk 0:02:24.5]} 9... exf4
{[%clk 0:02:49.5]} 10. Nf3 {[%clk 0:02:24.6]} 10... O-O {[%clk 0:02:42.3]} 11.
gxf4 {[%clk 0:02:23.9]} 11... Re8+ {[%clk 0:02:28.4]} 12. Be2 {[%clk 0:02:23.8]}
12... d6 {[%clk 0:02:19.1]} 13. Qd2 {[%clk 0:02:18.5]} 13... Qxb2 {[%clk
0:02:08.8]} 14. O-O {[%clk 0:02:17.6]} 14... Bf5 {[%clk 0:01:59.5]} 15. Bd3
{[%clk 0:02:15.3]} 15... Bg6 {[%clk 0:01:49.5]} 16. Kh1 {[%clk 0:02:13.8]} 16...
Qb4 {[%clk 0:01:40.3]} 17. Ng5 {[%clk 0:02:12.2]} 17... f6 {[%clk 0:01:32.8]}
18. Ne6 {[%clk 0:02:03.1]} 18... Rxe6 {[%clk 0:01:31.8]} 19. dxe6 {[%clk
0:02:00.7]} 19... Bxf4 {[%clk 0:01:29.7]} 20. Qe1 {[%clk 0:01:55.1]} 20... Nc6
{[%clk 0:01:29]} 21. Nd5 {[%clk 0:01:51.2]} 21... Qd4 {[%clk 0:01:20.7]} 22.
Nxf4 {[%clk 0:01:50.2]} 22... Qxf4 {[%clk 0:01:19]} 23. Rg1 {[%clk 0:01:44.6]}
23... Ne5 {[%clk 0:01:08.1]} 24. Qe4 {[%clk 0:01:40.3]} 24... Qxe4+ {[%clk
0:00:46.5]} 25. Bxe4 {[%clk 0:01:40]} 25... Kg7 {[%clk 0:00:41.3]} 26. f4 {[%clk
0:01:40.1]} 26... f5 {[%clk 0:00:16.2]} 27. fxe5 {[%clk 0:01:37]} 27... fxe4
{[%clk 0:00:15.8]} 28. exd6 {[%clk 0:01:37.9]} 28... Kf6 {[%clk 0:00:15.7]} 29.
e7 {[%clk 0:01:38]} 29... Ke6 {[%clk 0:00:12.7]} 30. Rad1 {[%clk 0:01:38]} 30...
e3 {[%clk 0:00:10.6]} 31. Rge1 {[%clk 0:01:37.9]} 31... Be4+ {[%clk 0:00:10.3]}
32. Kg1 {[%clk 0:01:38.4]} 32... Rg8+ {[%clk 0:00:06.8]} 33. Kf1 {[%clk
0:01:39]} 33... Kd7 {[%clk 0:00:06]} 34. Rxe3 {[%clk 0:01:38.8]} 34... Bxc2
{[%clk 0:00:06]} 35. Rd2 {[%clk 0:01:37.2]} 35... Ba4 {[%clk 0:00:05.8]} 36. Rf2
{[%clk 0:01:35.5]} 36... Bb5+ {[%clk 0:00:02.1]} 37. Ke1 {[%clk 0:01:35.9]} 1-0

[Event "Early-Titled-Tuesday-Blitz-April-02-2024"]
[Site "Chess.com"]
[Date "2024.04.02"]
[Round "1"]
[White "viktorskliarov"]
[Black "IsmaelAmadorGarcia"]
[Result "1-0"]
[WhiteElo "2610"]
[BlackElo "2249"]
[TimeControl "180+1"]
[EndTime "8:06:03 PDT"]
[Termination "viktorskliarov won by resignation"]

1. e4 {[%clk 0:03:00.9]} 1... e5 {[%clk 0:02:57.6]} 2. Nc3 {[%clk 0:03:00.8]}
2... Nf6 {[%clk 0:02:54.2]} 3. Bc4 {[%clk 0:03:00.5]} 3... Bc5 {[%clk
0:02:53.3]} 4. d3 {[%clk 0:03:00.6]} 4... O-O {[%clk 0:02:49.2]} 5. h3 {[%clk
0:03:00.7]} 5... c6 {[%clk 0:02:47.6]} 6. Qf3 {[%clk 0:03:00.5]} 6... b5 {[%clk
0:02:44]} 7. Bb3 {[%clk 0:03:00.4]} 7... b4 {[%clk 0:02:37]} 8. Nd1 {[%clk
0:02:46.6]} 8... a5 {[%clk 0:02:32.3]} 9. a4 {[%clk 0:02:41.7]} 9... bxa3 {[%clk
0:02:28.8]} 10. bxa3 {[%clk 0:02:41]} 10... a4 {[%clk 0:02:29]} 11. Ba2 {[%clk
0:02:40.4]} 11... Qb6 {[%clk 0:01:50.7]} 12. Ne2 {[%clk 0:02:37.3]} 12... d5
{[%clk 0:01:46.4]} 13. Rb1 {[%clk 0:02:04.3]} 13... Qa7 {[%clk 0:01:40.5]} 14.
Ne3 {[%clk 0:01:57.6]} 14... Be6 {[%clk 0:01:37.7]} 15. exd5 {[%clk 0:01:33.9]}
15... cxd5 {[%clk 0:01:36.3]} 16. Nxd5 {[%clk 0:01:34.1]} 16... Nxd5 {[%clk
0:01:33.5]} 17. Bxd5 {[%clk 0:01:33.8]} 17... Bxd5 {[%clk 0:01:25.8]} 18. Qxd5
{[%clk 0:01:34.7]} 18... Bxf2+ {[%clk 0:01:25.9]} 19. Kd1 {[%clk 0:01:34.5]}
19... Bd4 {[%clk 0:01:03.5]} 20. Rf1 {[%clk 0:01:29.2]} 20... Na6 {[%clk
0:00:50]} 21. Rb7 {[%clk 0:01:26.4]} 21... Qc5 {[%clk 0:00:50]} 22. Rfxf7 {[%clk
0:01:23.7]} 22... Kh8 {[%clk 0:00:37.1]} 23. Qxc5 {[%clk 0:00:35.6]} 23... Nxc5
{[%clk 0:00:34.6]} 24. Rbe7 {[%clk 0:00:35.7]} 24... Kg8 {[%clk 0:00:31.3]} 25.
Rxg7+ {[%clk 0:00:35]} 25... Kh8 {[%clk 0:00:31.3]} 26. Rxh7+ {[%clk 0:00:35.9]}
1-0